[Event "Late-Titled-Tuesday-Blitz-May-14-2024"]
[Site "Chess.com"]
[Date "2024.05.14"]
[Round "2"]
[White "ColorsTrilogy"]
[Black "Pingah9"]
[Result "0-1"]
[WhiteElo "2330"]
[BlackElo "2539"]
[TimeControl "180+1"]
[EndTime "14:18:43 PDT"]
[Termination "Pingah9 won by resignation"]

1. e4 {[%clk 0:02:59.2]} 1... g6 {[%clk 0:02:59.9]} 2. d4 {[%clk 0:02:57.7]}
2... Bg7 {[%clk 0:03:00.3]} 3. g3 {[%clk 0:02:56.3]} 3... c5 {[%clk 0:02:58.1]}
4. Be3 {[%clk 0:02:53.8]} 4... Nc6 {[%clk 0:02:56.6]} 5. Ne2 {[%clk 0:02:46.6]}
5... Qb6 {[%clk 0:02:53.8]} 6. Nbc3 {[%clk 0:02:38.2]} 6... cxd4 {[%clk
0:02:52.7]} 7. Nd5 {[%clk 0:02:38]} 7... Qa5+ {[%clk 0:02:48.7]} 8. b4 {[%clk
0:02:26.7]} 8... Qa3 {[%clk 0:02:28.7]} 9. Bc1 {[%clk 0:02:15.2]} 9... Qf3
{[%clk 0:02:21.5]} 10. Rg1 {[%clk 0:01:59.5]} 10... d3 {[%clk 0:02:21]} 11. cxd3
{[%clk 0:01:48.9]} 11... Bxa1 {[%clk 0:02:17.6]} 12. Bg2 {[%clk 0:01:44.8]}
12... Qh5 {[%clk 0:02:15.9]} 13. Nc7+ {[%clk 0:01:16.5]} 13... Kd8 {[%clk
0:02:15.1]} 14. Nxa8 {[%clk 0:01:17]} 14... Nf6 {[%clk 0:01:54.7]} 15. Bf4
{[%clk 0:01:11.4]} 15... Be5 {[%clk 0:01:53.8]} 16. b5 {[%clk 0:00:33.3]} 16...
Bxf4 {[%clk 0:01:35.8]} 17. bxc6 {[%clk 0:00:33.8]} 17... Bd6 {[%clk 0:01:24.8]}
18. c7+ {[%clk 0:00:19.8]} 18... Ke8 {[%clk 0:01:20.5]} 19. Qa4 {[%clk
0:00:19.3]} 19... Qc5 {[%clk 0:01:09]} 20. d4 {[%clk 0:00:19.3]} 20... Qb4+
{[%clk 0:00:59.3]} 21. Qxb4 {[%clk 0:00:19.6]} 21... Bxb4+ {[%clk 0:01:00.2]}
22. Kd1 {[%clk 0:00:19.7]} 22... Ng4 {[%clk 0:00:54.1]} 23. Kc2 {[%clk
0:00:17.2]} 23... Nxf2 {[%clk 0:00:50.6]} 24. e5 {[%clk 0:00:16.7]} 24... f6
{[%clk 0:00:36.5]} 25. Rf1 {[%clk 0:00:16.3]} 25... Ng4 {[%clk 0:00:36]} 26. Rf3
{[%clk 0:00:15.5]} 26... fxe5 {[%clk 0:00:34.4]} 27. Rb3 {[%clk 0:00:16.1]}
27... a5 {[%clk 0:00:32]} 28. dxe5 {[%clk 0:00:15.6]} 28... Nxe5 {[%clk
0:00:30.3]} 29. a3 {[%clk 0:00:16.3]} 29... Bd6 {[%clk 0:00:28.7]} 30. Bxb7
{[%clk 0:00:16.1]} 30... Kf7 {[%clk 0:00:20.6]} 31. Bd5+ {[%clk 0:00:14.2]}
31... e6 {[%clk 0:00:20.2]} 32. Be4 {[%clk 0:00:14.1]} 32... Ba6 {[%clk
0:00:17.9]} 33. Nb6 {[%clk 0:00:13.8]} 33... Bxc7 {[%clk 0:00:16.1]} 34. Nd4
{[%clk 0:00:12]} 34... Bxb6 {[%clk 0:00:14]} 35. Rxb6 {[%clk 0:00:11.4]} 35...
Bc4 {[%clk 0:00:14.8]} 36. Nb5 {[%clk 0:00:08.4]} 36... Ke7 {[%clk 0:00:13.5]}
37. Nd6 {[%clk 0:00:07.9]} 37... Bd5 {[%clk 0:00:09.5]} 38. Bxd5 {[%clk
0:00:07.1]} 38... exd5 {[%clk 0:00:10.4]} 39. Kc3 {[%clk 0:00:07.3]} 39... Rf8
{[%clk 0:00:09.1]} 40. Kd4 {[%clk 0:00:07.5]} 40... Nc6+ {[%clk 0:00:09.3]} 41.
Kxd5 {[%clk 0:00:07.7]} 41... Rf2 {[%clk 0:00:09.8]} 42. Ne4 {[%clk 0:00:07.7]}
42... Rf1 {[%clk 0:00:09.5]} 43. Rb7 {[%clk 0:00:08]} 43... Rd1+ {[%clk
0:00:09.5]} 44. Kc4 {[%clk 0:00:08.2]} 44... Rd4+ {[%clk 0:00:09.4]} 45. Kc5
{[%clk 0:00:07.8]} 45... Rxe4 {[%clk 0:00:10.3]} 46. Kb6 {[%clk 0:00:08]} 46...
Re3 {[%clk 0:00:10.1]} 47. Kc7 {[%clk 0:00:08.9]} 47... Rxa3 {[%clk 0:00:10.1]}
48. Kc8 {[%clk 0:00:09.6]} 48... Rd3 {[%clk 0:00:09.8]} 49. Rc7 {[%clk
0:00:09.9]} 49... a4 {[%clk 0:00:10.1]} 50. Rb7 {[%clk 0:00:10]} 50... a3 {[%clk
0:00:10.2]} 0-1

[Event "Late-Titled-Tuesday-Blitz-May-14-2024"]
[Site "Chess.com"]
[Date "2024.05.14"]
[Round "2"]
[White "HajiyevKanan"]
[Black "Kira170"]
[Result "0-1"]
[WhiteElo "2460"]
[BlackElo "2759"]
[TimeControl "180+1"]
[EndTime "14:18:44 PDT"]
[Termination "Kira170 won by checkmate"]

1. d4 {[%clk 0:03:00.9]} 1... e6 {[%clk 0:03:00.9]} 2. c4 {[%clk 0:03:00.4]}
2... f5 {[%clk 0:03:00.4]} 3. Nf3 {[%clk 0:02:59.9]} 3... Nf6 {[%clk 0:03:00.8]}
4. g3 {[%clk 0:03:00.6]} 4... d5 {[%clk 0:03:01.1]} 5. Bg2 {[%clk 0:03:01.5]}
5... Ne4 {[%clk 0:03:01.5]} 6. O-O {[%clk 0:03:01.5]} 6... Be7 {[%clk
0:03:01.5]} 7. Ne5 {[%clk 0:03:01.1]} 7... Nd7 {[%clk 0:03:01.4]} 8. f3 {[%clk
0:03:01.5]} 8... Nxe5 {[%clk 0:02:59.7]} 9. fxe4 {[%clk 0:02:49]} 9... Nxc4
{[%clk 0:02:58.8]} 10. exd5 {[%clk 0:02:22.9]} 10... exd5 {[%clk 0:02:58.4]} 11.
Nc3 {[%clk 0:02:23.5]} 11... c6 {[%clk 0:02:58.2]} 12. e4 {[%clk 0:02:23.8]}
12... dxe4 {[%clk 0:02:53.8]} 13. d5 {[%clk 0:02:02.7]} 13... O-O {[%clk
0:02:41.6]} 14. dxc6 {[%clk 0:01:44.9]} 14... Qxd1 {[%clk 0:02:34.8]} 15. Rxd1
{[%clk 0:01:45.8]} 15... bxc6 {[%clk 0:02:34.8]} 16. b3 {[%clk 0:01:40.2]} 16...
Bf6 {[%clk 0:02:16.2]} 17. bxc4 {[%clk 0:01:28.1]} 17... Bxc3 {[%clk 0:02:14.2]}
18. Rb1 {[%clk 0:01:29]} 18... Ba6 {[%clk 0:02:01.7]} 19. Rd6 {[%clk 0:01:24.6]}
19... Bxc4 {[%clk 0:01:56.2]} 20. Rxc6 {[%clk 0:01:24]} 20... Bxa2 {[%clk
0:01:55.1]} 21. Rb5 {[%clk 0:01:17]} 21... Bd4+ {[%clk 0:01:47.1]} 22. Kh1
{[%clk 0:01:16.7]} 22... Rac8 {[%clk 0:01:44.6]} 23. Rxc8 {[%clk 0:01:09.7]}
23... Rxc8 {[%clk 0:01:45.5]} 24. Bf4 {[%clk 0:01:05.3]} 24... g6 {[%clk
0:01:43.6]} 25. h4 {[%clk 0:01:05]} 25... Bc4 {[%clk 0:01:36.4]} 26. Rb7 {[%clk
0:01:03.5]} 26... a5 {[%clk 0:01:34.3]} 27. h5 {[%clk 0:01:00.3]} 27... a4
{[%clk 0:01:33.9]} 28. Bd6 {[%clk 0:01:00.6]} 28... Be2 {[%clk 0:01:21.4]} 29.
h6 {[%clk 0:00:56.6]} 29... Bf3 {[%clk 0:01:08.3]} 30. Rb4 {[%clk 0:00:46.9]}
30... Rc1+ {[%clk 0:00:48.3]} 31. Kh2 {[%clk 0:00:46.7]} 31... Bg1+ {[%clk
0:00:34.8]} 32. Kh3 {[%clk 0:00:46]} 32... Bg4+ {[%clk 0:00:32.1]} 33. Kh4
{[%clk 0:00:43.8]} 33... Be3 {[%clk 0:00:31.4]} 34. Rb8+ {[%clk 0:00:28.2]}
34... Kf7 {[%clk 0:00:30.9]} 35. Rb7+ {[%clk 0:00:24.9]} 35... Ke6 {[%clk
0:00:30.7]} 36. Bf4 {[%clk 0:00:25.7]} 36... Bxf4 {[%clk 0:00:28.8]} 37. gxf4
{[%clk 0:00:26.6]} 37... a3 {[%clk 0:00:22.6]} 38. Ra7 {[%clk 0:00:26.2]} 38...
Rg1 {[%clk 0:00:17.6]} 39. Bxe4 {[%clk 0:00:19]} 39... fxe4 {[%clk 0:00:17.7]}
40. Rxa3 {[%clk 0:00:19.4]} 40... Bf3 {[%clk 0:00:13.3]} 41. Ra7 {[%clk
0:00:18.7]} 41... e3 {[%clk 0:00:07.7]} 42. Ra8 {[%clk 0:00:13.9]} 42... Kf5
{[%clk 0:00:06.6]} 43. Rf8+ {[%clk 0:00:13.5]} 43... Ke4 {[%clk 0:00:06.6]} 44.
Re8+ {[%clk 0:00:14.2]} 44... Kd3 {[%clk 0:00:06.8]} 45. f5 {[%clk 0:00:14.8]}
45... gxf5 {[%clk 0:00:06.4]} 46. Kh3 {[%clk 0:00:15.5]} 46... e2 {[%clk
0:00:05.9]} 47. Kh2 {[%clk 0:00:16.3]} 47... e1=Q {[%clk 0:00:06]} 48. Rd8+
{[%clk 0:00:16.5]} 48... Kc4 {[%clk 0:00:03.9]} 49. Rc8+ {[%clk 0:00:17.2]}
49... Kd4 {[%clk 0:00:04.2]} 50. Rd8+ {[%clk 0:00:17.7]} 50... Kc5 {[%clk
0:00:04.8]} 51. Rb8 {[%clk 0:00:18.1]} 51... Bc6 {[%clk 0:00:05.4]} 52. Rb3
{[%clk 0:00:16.8]} 52... Rh1# {[%clk 0:00:04.8]} 0-1

[Event "Late-Titled-Tuesday-Blitz-May-14-2024"]
[Site "Chess.com"]
[Date "2024.05.14"]
[Round "2"]
[White "David_ATM"]
[Black "shirovin"]
[Result "1-0"]
[WhiteElo "2454"]
[BlackElo "2103"]
[TimeControl "180+1"]
[EndTime "14:18:44 PDT"]
[Termination "David_ATM won on time"]

1. e4 {[%clk 0:03:00.9]} 1... Nf6 {[%clk 0:02:57.4]} 2. Nc3 {[%clk 0:02:59.4]}
2... d5 {[%clk 0:02:56.3]} 3. exd5 {[%clk 0:02:59]} 3... Nxd5 {[%clk 0:02:55.9]}
4. Nxd5 {[%clk 0:02:59.9]} 4... Qxd5 {[%clk 0:02:55.2]} 5. Qf3 {[%clk
0:03:00.8]} 5... Qxf3 {[%clk 0:02:54.2]} 6. Nxf3 {[%clk 0:03:01.7]} 6... Nc6
{[%clk 0:02:54.1]} 7. c3 {[%clk 0:02:58]} 7... Bg4 {[%clk 0:02:53.3]} 8. Be2
{[%clk 0:02:58.1]} 8... e5 {[%clk 0:02:50]} 9. h3 {[%clk 0:02:58.1]} 9... Bd7
{[%clk 0:02:39.7]} 10. O-O {[%clk 0:02:53.1]} 10... O-O-O {[%clk 0:02:38.5]} 11.
Re1 {[%clk 0:02:53.2]} 11... f6 {[%clk 0:02:35.2]} 12. d3 {[%clk 0:02:43.9]}
12... Bc5 {[%clk 0:02:33.4]} 13. Be3 {[%clk 0:02:43.5]} 13... Bxe3 {[%clk
0:02:27.9]} 14. fxe3 {[%clk 0:02:44.4]} 14... Bf5 {[%clk 0:02:24]} 15. d4 {[%clk
0:02:43.8]} 15... Rhe8 {[%clk 0:02:18.2]} 16. Bf1 {[%clk 0:02:31.9]} 16... a5
{[%clk 0:02:10.6]} 17. Bb5 {[%clk 0:02:31.6]} 17... Bd7 {[%clk 0:02:07.2]} 18.
Kf2 {[%clk 0:02:21.4]} 18... Kb8 {[%clk 0:02:06.4]} 19. Bf1 {[%clk 0:02:11.7]}
19... Re7 {[%clk 0:01:57]} 20. Nd2 {[%clk 0:02:11.5]} 20... Rde8 {[%clk
0:01:54.4]} 21. a3 {[%clk 0:01:50.8]} 21... a4 {[%clk 0:01:29]} 22. b4 {[%clk
0:01:28.1]} 22... axb3 {[%clk 0:01:26.3]} 23. Nxb3 {[%clk 0:01:28.4]} 23... b6
{[%clk 0:01:24.6]} 24. a4 {[%clk 0:01:28.4]} 24... Na5 {[%clk 0:01:15.8]} 25.
Nxa5 {[%clk 0:01:26.3]} 25... bxa5 {[%clk 0:01:14.9]} 26. d5 {[%clk 0:01:20.3]}
26... Ka7 {[%clk 0:01:07.3]} 27. c4 {[%clk 0:00:54.4]} 27... Rb8 {[%clk
0:01:03.8]} 28. c5 {[%clk 0:00:54.9]} 28... Rb4 {[%clk 0:00:58.6]} 29. c6 {[%clk
0:00:47.4]} 29... Bf5 {[%clk 0:00:54.7]} 30. Bb5 {[%clk 0:00:38.9]} 30... Rf7
{[%clk 0:00:25.3]} 31. Kf3 {[%clk 0:00:37]} 31... Rf8 {[%clk 0:00:21.9]} 32. e4
{[%clk 0:00:37.2]} 32... Bc8 {[%clk 0:00:19.3]} 33. Reb1 {[%clk 0:00:30.3]}
33... Rxb1 {[%clk 0:00:16.2]} 34. Rxb1 {[%clk 0:00:31.2]} 34... Ba6 {[%clk
0:00:15.8]} 35. Bxa6 {[%clk 0:00:28.8]} 35... Kxa6 {[%clk 0:00:15.9]} 36. Rb7
{[%clk 0:00:29.3]} 36... Rc8 {[%clk 0:00:14.4]} 37. h4 {[%clk 0:00:29.7]} 37...
g6 {[%clk 0:00:13.4]} 38. g4 {[%clk 0:00:22.9]} 38... h6 {[%clk 0:00:12.8]} 39.
Kg3 {[%clk 0:00:23.1]} 39... f5 {[%clk 0:00:09]} 40. gxf5 {[%clk 0:00:18.2]}
40... gxf5 {[%clk 0:00:08.3]} 41. exf5 {[%clk 0:00:19.1]} 41... e4 {[%clk
0:00:08.2]} 42. Kf4 {[%clk 0:00:19.1]} 42... Rf8 {[%clk 0:00:06]} 43. Kxe4
{[%clk 0:00:18.9]} 43... Re8+ {[%clk 0:00:00.9]} 44. Kf4 {[%clk 0:00:18.1]}
44... Rf8 {[%clk 0:00:01.4]} 45. Ke5 {[%clk 0:00:10.3]} 45... Re8+ {[%clk
0:00:00.6]} 46. Kf6 {[%clk 0:00:10.2]} 46... Re1 {[%clk 0:00:00.1]} 47. Kg7
{[%clk 0:00:09.6]} 1-0

[Event "Late-Titled-Tuesday-Blitz-May-14-2024"]
[Site "Chess.com"]
[Date "2024.05.14"]
[Round "2"]
[White "bazar-wokzal"]
[Black "Rodalquilar"]
[Result "1-0"]
[WhiteElo "2616"]
[BlackElo "2852"]
[TimeControl "180+1"]
[EndTime "14:18:50 PDT"]
[Termination "bazar-wokzal won by checkmate"]

1. e4 {[%clk 0:03:00.9]} 1... d5 {[%clk 0:03:00]} 2. exd5 {[%clk 0:02:59.7]}
2... Qxd5 {[%clk 0:03:00.9]} 3. Nc3 {[%clk 0:02:59.3]} 3... Qa5 {[%clk
0:03:00.9]} 4. Nf3 {[%clk 0:02:59.8]} 4... Nf6 {[%clk 0:03:00.8]} 5. d4 {[%clk
0:02:59.6]} 5... Bf5 {[%clk 0:02:58.5]} 6. Ne5 {[%clk 0:02:59.4]} 6... c6 {[%clk
0:02:58.5]} 7. g4 {[%clk 0:02:59.2]} 7... Be6 {[%clk 0:02:58.4]} 8. Bc4 {[%clk
0:02:46.2]} 8... Nxg4 {[%clk 0:02:16.8]} 9. Bxe6 {[%clk 0:02:36.3]} 9... Nxe5
{[%clk 0:02:16.8]} 10. Bc8 {[%clk 0:02:00.9]} 10... Nbd7 {[%clk 0:02:16.9]} 11.
Bxb7 {[%clk 0:01:57.9]} 11... Rb8 {[%clk 0:02:17.3]} 12. dxe5 {[%clk 0:01:50.3]}
12... Qxe5+ {[%clk 0:02:17.4]} 13. Be3 {[%clk 0:01:46.4]} 13... Rxb7 {[%clk
0:02:17.6]} 14. Qd3 {[%clk 0:01:26.2]} 14... e6 {[%clk 0:02:03.7]} 15. O-O-O
{[%clk 0:01:25.4]} 15... Be7 {[%clk 0:01:56.3]} 16. Rhg1 {[%clk 0:01:09.1]}
16... O-O {[%clk 0:01:43]} 17. Bd4 {[%clk 0:00:45.1]} 17... Qf4+ {[%clk
0:01:43.1]} 18. Kb1 {[%clk 0:00:45.2]} 18... Bf6 {[%clk 0:01:40.5]} 19. Ne4
{[%clk 0:00:37]} 19... Bxd4 {[%clk 0:01:26.9]} 20. Qxd4 {[%clk 0:00:37]} 20...
Qe5 {[%clk 0:01:27.3]} 21. f4 {[%clk 0:00:19.7]} 21... Qxd4 {[%clk 0:01:26.9]}
22. Rxd4 {[%clk 0:00:20.6]} 22... Rfb8 {[%clk 0:00:52.5]} 23. b3 {[%clk
0:00:19.9]} 23... Kf8 {[%clk 0:00:53.1]} 24. f5 {[%clk 0:00:15.3]} 24... exf5
{[%clk 0:00:49.2]} 25. Nd6 {[%clk 0:00:15.6]} 25... Rb4 {[%clk 0:00:48.3]} 26.
Nxf5 {[%clk 0:00:13.2]} 26... Rxd4 {[%clk 0:00:47.8]} 27. Nxd4 {[%clk
0:00:14.1]} 27... Ne5 {[%clk 0:00:45.5]} 28. Re1 {[%clk 0:00:10.9]} 28... f6
{[%clk 0:00:42.6]} 29. Kb2 {[%clk 0:00:10.3]} 29... Rd8 {[%clk 0:00:41.5]} 30.
Ne6+ {[%clk 0:00:08.2]} 30... Ke7 {[%clk 0:00:40.9]} 31. Nxd8 {[%clk 0:00:09.1]}
31... Kxd8 {[%clk 0:00:41.8]} 32. Kc3 {[%clk 0:00:08.6]} 32... Kd7 {[%clk
0:00:42.1]} 33. Rd1+ {[%clk 0:00:07.5]} 33... Ke7 {[%clk 0:00:41.8]} 34. Kb4
{[%clk 0:00:06.6]} 34... g5 {[%clk 0:00:42.4]} 35. Ka5 {[%clk 0:00:05.7]} 35...
g4 {[%clk 0:00:42.7]} 36. Ka6 {[%clk 0:00:05.5]} 36... h5 {[%clk 0:00:38.3]} 37.
Kxa7 {[%clk 0:00:05.8]} 37... h4 {[%clk 0:00:39]} 38. a4 {[%clk 0:00:05.7]}
38... f5 {[%clk 0:00:38.3]} 39. a5 {[%clk 0:00:05.2]} 39... f4 {[%clk
0:00:38.9]} 40. a6 {[%clk 0:00:05.6]} 40... g3 {[%clk 0:00:39.5]} 41. Kb7 {[%clk
0:00:04.8]} 41... f3 {[%clk 0:00:33.7]} 42. a7 {[%clk 0:00:05]} 42... g2 {[%clk
0:00:32.9]} 43. a8=Q {[%clk 0:00:05.1]} 43... Ke6 {[%clk 0:00:32.9]} 44. Qe8+
{[%clk 0:00:04.7]} 44... Kf5 {[%clk 0:00:33.5]} 45. Qf8+ {[%clk 0:00:04.6]}
45... Ke4 {[%clk 0:00:33.8]} 46. Qf6 {[%clk 0:00:02.6]} 46... Ng4 {[%clk
0:00:31.9]} 47. Re1+ {[%clk 0:00:02.3]} 47... Ne3 {[%clk 0:00:23.5]} 48. Qe6+
{[%clk 0:00:02.4]} 48... Kf4 {[%clk 0:00:23.7]} 49. Qxe3+ {[%clk 0:00:02.9]}
49... Kg4 {[%clk 0:00:24.6]} 50. Qf2 {[%clk 0:00:03.2]} 50... Kf4 {[%clk
0:00:24.5]} 51. Re3 {[%clk 0:00:02.7]} 51... g1=Q {[%clk 0:00:25.4]} 52. Rxf3+
{[%clk 0:00:02.9]} 52... Kg4 {[%clk 0:00:25.8]} 53. Rf4+ {[%clk 0:00:03.2]}
53... Kh3 {[%clk 0:00:26.2]} 54. Qxg1 {[%clk 0:00:02.6]} 54... c5 {[%clk
0:00:27.1]} 55. Qg4+ {[%clk 0:00:02.5]} 55... Kxh2 {[%clk 0:00:27.3]} 56. Rf2+
{[%clk 0:00:03.2]} 56... Kh1 {[%clk 0:00:26.6]} 57. Qg2# {[%clk 0:00:04.1]} 1-0

[Event "Late-Titled-Tuesday-Blitz-May-14-2024"]
[Site "Chess.com"]
[Date "2024.05.14"]
[Round "2"]
[White "karinachess1"]
[Black "FaustinoOro"]
[Result "0-1"]
[WhiteElo "2628"]
[BlackElo "2924"]
[TimeControl "180+1"]
[EndTime "14:18:53 PDT"]
[Termination "FaustinoOro won by resignation"]

1. d4 {[%clk 0:03:00.9]} 1... Nf6 {[%clk 0:02:59.8]} 2. c4 {[%clk 0:03:01.2]}
2... c6 {[%clk 0:02:57.6]} 3. Nf3 {[%clk 0:03:00.8]} 3... d5 {[%clk 0:02:57.6]}
4. g3 {[%clk 0:03:01.4]} 4... e6 {[%clk 0:02:56.3]} 5. Bg2 {[%clk 0:03:01.2]}
5... Bd6 {[%clk 0:02:55.9]} 6. Qd3 {[%clk 0:03:01.5]} 6... O-O {[%clk
0:02:55.7]} 7. O-O {[%clk 0:03:01.8]} 7... Nbd7 {[%clk 0:02:55.1]} 8. Nbd2
{[%clk 0:03:02.1]} 8... b6 {[%clk 0:02:35.3]} 9. b3 {[%clk 0:03:02.1]} 9... Bb7
{[%clk 0:02:35.2]} 10. Bb2 {[%clk 0:03:02.4]} 10... c5 {[%clk 0:02:34.6]} 11.
cxd5 {[%clk 0:02:51.6]} 11... Nxd5 {[%clk 0:02:33.6]} 12. e4 {[%clk 0:02:48]}
12... Nb4 {[%clk 0:02:12.2]} 13. Qe2 {[%clk 0:02:47.8]} 13... cxd4 {[%clk
0:02:02.7]} 14. Nxd4 {[%clk 0:02:43.2]} 14... Ne5 {[%clk 0:02:02.9]} 15. Rfd1
{[%clk 0:02:28.5]} 15... Ba6 {[%clk 0:01:55.4]} 16. Nc4 {[%clk 0:02:15.8]} 16...
Nxc4 {[%clk 0:01:54.6]} 17. bxc4 {[%clk 0:02:15.5]} 17... Qc7 {[%clk 0:01:21.6]}
18. Nb5 {[%clk 0:02:03.3]} 18... Bxb5 {[%clk 0:01:21.1]} 19. cxb5 {[%clk
0:02:04.2]} 19... Rac8 {[%clk 0:00:54]} 20. a3 {[%clk 0:01:54.4]} 20... Nc2
{[%clk 0:00:53.2]} 21. Rac1 {[%clk 0:01:54.8]} 21... Rfd8 {[%clk 0:00:49.7]} 22.
Rd2 {[%clk 0:01:45.2]} 22... Bxa3 {[%clk 0:00:28.1]} 23. Rdxc2 {[%clk 0:01:38]}
23... Bc5 {[%clk 0:00:25.9]} 24. Ba3 {[%clk 0:01:16.6]} 24... Qe7 {[%clk
0:00:22.4]} 25. Bxc5 {[%clk 0:01:16.4]} 25... bxc5 {[%clk 0:00:23.3]} 26. Qc4
{[%clk 0:01:12.5]} 26... h6 {[%clk 0:00:22.7]} 27. h4 {[%clk 0:01:12.1]} 27...
Rd4 {[%clk 0:00:19.8]} 28. Qc3 {[%clk 0:01:05.7]} 28... e5 {[%clk 0:00:19.1]}
29. Ra2 {[%clk 0:01:04.1]} 29... Rc7 {[%clk 0:00:18.2]} 30. Ra6 {[%clk
0:00:59.6]} 30... Qd7 {[%clk 0:00:17.9]} 31. Rca1 {[%clk 0:00:48.9]} 31... c4
{[%clk 0:00:17.5]} 32. R6a5 {[%clk 0:00:34.3]} 32... Qd6 {[%clk 0:00:16.8]} 33.
Rxa7 {[%clk 0:00:31]} 33... Rxa7 {[%clk 0:00:14.4]} 34. Rxa7 {[%clk 0:00:31.9]}
34... Qc5 {[%clk 0:00:14.9]} 35. Ra8+ {[%clk 0:00:30.7]} 35... Kh7 {[%clk
0:00:15]} 36. Ra1 {[%clk 0:00:26.7]} 36... Rd3 {[%clk 0:00:13.4]} 37. Qc2 {[%clk
0:00:20.3]} 37... Qd4 {[%clk 0:00:13.7]} 38. Rc1 {[%clk 0:00:18.7]} 38... Rd2
{[%clk 0:00:13.9]} 39. Bf1 {[%clk 0:00:13]} 39... Rxc2 {[%clk 0:00:13.7]} 40.
Rxc2 {[%clk 0:00:13.9]} 40... c3 {[%clk 0:00:14.4]} 41. Kh2 {[%clk 0:00:08.7]}
41... g6 {[%clk 0:00:12.9]} 42. Kg1 {[%clk 0:00:08.1]} 42... Qb4 {[%clk
0:00:13.1]} 43. Bd3 {[%clk 0:00:06.3]} 43... Qb3 {[%clk 0:00:12.7]} 44. Kf1
{[%clk 0:00:05.7]} 44... Kg7 {[%clk 0:00:11.9]} 45. Ke2 {[%clk 0:00:06.3]} 45...
Kf6 {[%clk 0:00:12.6]} 46. Ke3 {[%clk 0:00:06.3]} 46... Qb4 {[%clk 0:00:13.1]}
47. Ke2 {[%clk 0:00:06.1]} 47... Ke6 {[%clk 0:00:13.6]} 48. f3 {[%clk 0:00:06]}
48... Kd6 {[%clk 0:00:14.1]} 49. g4 {[%clk 0:00:06.2]} 49... Kc5 {[%clk
0:00:14.3]} 50. Rc1 {[%clk 0:00:04.8]} 50... Kd4 {[%clk 0:00:12.5]} 51. Rd1
{[%clk 0:00:04.9]} 51... Qb2+ {[%clk 0:00:12.6]} 52. Bc2+ {[%clk 0:00:05.5]}
52... Kc4 {[%clk 0:00:13]} 53. Ke3 {[%clk 0:00:04.3]} 53... Qxc2 {[%clk
0:00:12.7]} 54. Rd5 {[%clk 0:00:05.2]} 54... Qc1+ {[%clk 0:00:12.4]} 0-1

[Event "Late-Titled-Tuesday-Blitz-May-14-2024"]
[Site "Chess.com"]
[Date "2024.05.14"]
[Round "2"]
[White "MuhittinBuker"]
[Black "cristianserban1"]
[Result "0-1"]
[WhiteElo "2207"]
[BlackElo "2484"]
[TimeControl "180+1"]
[EndTime "14:18:56 PDT"]
[Termination "cristianserban1 won by checkmate"]

1. d4 {[%clk 0:03:00.9]} 1... Nf6 {[%clk 0:03:00.1]} 2. c4 {[%clk 0:02:59.7]}
2... b6 {[%clk 0:02:58.8]} 3. Nc3 {[%clk 0:02:59.1]} 3... Bb7 {[%clk 0:02:59.3]}
4. Nf3 {[%clk 0:02:57.2]} 4... g6 {[%clk 0:02:59.3]} 5. g3 {[%clk 0:02:57.1]}
5... Bg7 {[%clk 0:02:59.8]} 6. Bg2 {[%clk 0:02:57.7]} 6... O-O {[%clk
0:03:00.2]} 7. O-O {[%clk 0:02:58.3]} 7... Ne4 {[%clk 0:02:50]} 8. Qc2 {[%clk
0:02:50.5]} 8... Nxc3 {[%clk 0:02:45.1]} 9. Qxc3 {[%clk 0:02:50.2]} 9... c5
{[%clk 0:02:45]} 10. Be3 {[%clk 0:02:49.2]} 10... Nc6 {[%clk 0:02:35.6]} 11. Qd2
{[%clk 0:02:48]} 11... cxd4 {[%clk 0:02:32.5]} 12. Nxd4 {[%clk 0:02:46.8]} 12...
Rc8 {[%clk 0:02:11.1]} 13. Rfd1 {[%clk 0:02:45.2]} 13... d6 {[%clk 0:02:03.1]}
14. Rac1 {[%clk 0:02:44]} 14... Qc7 {[%clk 0:01:52.3]} 15. b3 {[%clk 0:02:43.5]}
15... Rfd8 {[%clk 0:01:49.6]} 16. Nb5 {[%clk 0:02:35.4]} 16... Qb8 {[%clk
0:01:49.7]} 17. Bh6 {[%clk 0:02:34.9]} 17... Bh8 {[%clk 0:01:48.8]} 18. Bg5
{[%clk 0:02:32.5]} 18... Re8 {[%clk 0:01:47.2]} 19. e4 {[%clk 0:02:14.1]} 19...
Ba8 {[%clk 0:01:26.6]} 20. Be3 {[%clk 0:02:05.5]} 20... Ne5 {[%clk 0:01:22.5]}
21. h3 {[%clk 0:02:02.9]} 21... Nd7 {[%clk 0:01:19.8]} 22. Bd4 {[%clk
0:01:58.3]} 22... Bxd4 {[%clk 0:01:15.2]} 23. Qxd4 {[%clk 0:01:53.9]} 23... Nc5
{[%clk 0:01:15.4]} 24. Qe3 {[%clk 0:01:51.4]} 24... Bb7 {[%clk 0:01:08.3]} 25.
Qh6 {[%clk 0:01:49.8]} 25... Bxe4 {[%clk 0:01:02.3]} 26. Rd4 {[%clk 0:01:44.1]}
26... Bxg2 {[%clk 0:01:01.8]} 27. Rh4 {[%clk 0:01:43.4]} 27... e6 {[%clk
0:00:53.4]} 28. Qxh7+ {[%clk 0:01:37.7]} 28... Kf8 {[%clk 0:00:53.5]} 29. Kxg2
{[%clk 0:01:34.1]} 29... a6 {[%clk 0:00:31.8]} 30. Rf4 {[%clk 0:01:33]} 30...
Qb7+ {[%clk 0:00:26.8]} 31. f3 {[%clk 0:01:30.6]} 31... axb5 {[%clk 0:00:23.8]}
32. b4 {[%clk 0:01:20.7]} 32... Nd3 {[%clk 0:00:20.7]} 33. Qh8+ {[%clk
0:01:02.1]} 33... Ke7 {[%clk 0:00:20.8]} 34. Rxf7+ {[%clk 0:01:01.8]} 34... Kxf7
{[%clk 0:00:20.5]} 35. Qh7+ {[%clk 0:01:01.7]} 35... Kf6 {[%clk 0:00:19.1]} 36.
Qxb7 {[%clk 0:01:01.8]} 36... Nxc1 {[%clk 0:00:19.4]} 37. Qxb6 {[%clk
0:00:31.5]} 37... Rxc4 {[%clk 0:00:19.3]} 38. h4 {[%clk 0:00:28.4]} 38... d5
{[%clk 0:00:10.3]} 39. Qxb5 {[%clk 0:00:25.8]} 39... Rec8 {[%clk 0:00:09.9]} 40.
a4 {[%clk 0:00:24.9]} 40... Nb3 {[%clk 0:00:06.1]} 41. a5 {[%clk 0:00:23]} 41...
Nd4 {[%clk 0:00:05.8]} 42. Qb6 {[%clk 0:00:15.4]} 42... Nf5 {[%clk 0:00:01.5]}
43. b5 {[%clk 0:00:11.9]} 43... Rc2+ {[%clk 0:00:01.8]} 44. Kh3 {[%clk
0:00:11.4]} 44... g5 {[%clk 0:00:01.4]} 45. h5 {[%clk 0:00:10.1]} 45... g4+
{[%clk 0:00:01.6]} 46. Kxg4 {[%clk 0:00:09.7]} 46... Ne3+ {[%clk 0:00:01.6]} 47.
Kf4 {[%clk 0:00:07.9]} 47... Nf1 {[%clk 0:00:00.5]} 48. g4 {[%clk 0:00:07.3]}
48... R8c4+ {[%clk 0:00:01.1]} 49. Qd4+ {[%clk 0:00:03.8]} 49... Rxd4# {[%clk
0:00:02]} 0-1